bitfinex-derivatives/quotes_BTCF0:USTF0_20241227
["timestamp","ask_amount","ask_price","bid_price","bid_amount"]
[1735305004499,0.051915,96431.0,96429.0,0.18620787]
[1735305004911,0.051915,96431.0,96430.0,1.5]
[1735305005500,0.051915,96431.0,96429.0,0.001]
[1735305005802,0.051915,96431.0,96425.0,0.18620787]
[1735305006009,0.051915,96431.0,96429.0,0.001]
[1735305006900,0.054915,96431.0,96429.0,0.001]
[1735305008109,0.003,96431.0,96430.0,0.001]
[1735305008702,0.051916,96429.0,96421.0,1.5]
[1735305008898,0.05192,96422.0,96421.0,1.5]
[1735305009110,0.051921,96419.0,96418.0,0.18620787]
[1735305009613,0.051921,96419.0,96418.0,1.5]
[1735305010409,0.001,96422.0,96418.0,1.5]
[1735305010602,0.051921,96419.0,96418.0,1.5]
[1735305011702,0.09214799,96422.0,96418.0,1.501]
[1735305012000,0.09214799,96422.0,96420.0,0.05192]
[1735305012205,0.12249043,96430.0,96429.0,0.051916]
[1735305012412,0.0321,96455.0,96420.0,0.10289027]
[1735305012413,0.09214418,96428.0,96420.0,0.10289027]
[1735305012609,0.09214418,96428.0,96427.0,0.051917]
[1735305012911,0.09214418,96428.0,96427.0,1.551917]
[1735305013606,0.051911,96439.0,96431.0,0.051915]
[1735305013912,0.051919,96423.0,96422.0,0.18620787]
[1735305014712,0.051919,96423.0,96422.0,1.68620787]
[1735305014912,0.051919,96423.0,96422.0,1.5]
[1735305015213,0.052919,96423.0,96422.0,1.5]
[1735305015711,0.002,96423.0,96422.0,1.5]
[1735305016305,0.002,96423.0,96422.0,1.51040376]
[1735305017912,0.051914,96434.0,96423.0,0.051919]
[1735305018121,0.001,96423.0,96422.0,1.56332376]
[1735305018413,0.002,96423.0,96422.0,1.56232376]
[1735305018615,0.002,96423.0,96422.0,1.55192]
[1735305018815,0.001,96423.0,96422.0,1.55192]
[1735305019813,0.051926,96412.0,96410.0,0.24851113]
[1735305020116,0.051922,96418.0,96410.0,0.24851113]
[1735305020309,0.051924,96415.0,96410.0,0.24851113]
[1735305020510,0.051924,96414.0,96410.0,0.24851113]
[1735305020815,0.10289027,96420.0,96400.0,0.151931]
[1735305020816,0.10289027,96420.0,96404.0,1.5]
[1735305021003,0.051927,96409.0,96404.0,1.5]
[1735305021203,0.10289027,96420.0,96404.0,1.5]
[1735305021204,0.051928,96407.0,96404.0,1.5]
[1735305021404,0.051931,96402.0,96400.0,0.1]
[1735305021811,0.10289027,96414.0,96401.0,1.5]
[1735305022203,0.05193,96403.0,96401.0,1.5]
[1735305022613,0.002,96402.0,96400.0,0.1]
[1735305023119,0.003,96402.0,96400.0,0.1]
[1735305023319,0.003,96402.0,96401.0,0.051931]
[1735305024612,0.003,96402.0,96401.0,1.551931]
[1735305025018,0.001,96402.0,96401.0,1.551931]
[1735305025221,0.003,96414.0,96409.0,0.051926]
[1735305025421,0.20578054,96420.0,96400.0,0.1]
[1735305025721,0.003,96402.0,96400.0,0.1]
[1735305025923,0.0646,96401.0,96400.0,0.1]
[1735305028326,0.0686,96401.0,96400.0,0.1]
[1735305028523,0.1009,96401.0,96400.0,0.1]
[1735305028824,0.0989,96401.0,96400.0,0.1]
[1735305029024,0.1029,96401.0,96400.0,0.1]
[1735305029611,0.1029,96401.0,96370.0,0.10289027]
[1735305029612,0.1029,96401.0,96365.0,0.0316]
[1735305029815,0.051935,96395.0,96385.0,0.051939]
[1735305030025,0.051935,96393.0,96376.0,0.051944]
[1735305030319,0.051935,96393.0,96382.0,1.5]
[1735305030525,0.051933,96398.0,96386.0,0.051939]
[1735305030927,0.0383,96401.0,96389.0,0.051937]
[1735305031125,0.006,96401.0,96390.0,0.0322]
[1735305031323,0.12249043,96402.0,96390.0,0.0322]
[1735305031920,0.051931,96401.0,96390.0,0.0322]
[1735305032125,0.051932,96399.0,96390.0,0.0322]
[1735305032728,0.12249043,96402.0,96395.0,0.051934]
[1735305032924,0.0328,96411.0,96400.0,0.051931]
[1735305033130,0.12249043,96412.0,96408.0,0.051927]
[1735305033331,0.12249043,96412.0,96400.0,0.10289027]
[1735305033629,0.12249043,96412.0,96410.0,0.051926]
[1735305033820,0.12249043,96412.0,96411.0,0.0305]
[1735305034231,0.10425027,96420.0,96411.0,0.0305]
[1735305034429,0.10289027,96420.0,96411.0,0.0305]
[1735305034632,0.051921,96419.0,96411.0,0.0305]
[1735305035024,0.004,96412.0,96411.0,0.0305]
[1735305035225,0.006,96412.0,96411.0,0.0305]
[1735305035626,0.002,96412.0,96411.0,0.0305]
[1735305036032,0.051926,96411.0,96390.0,0.04256354]
[1735305036225,0.051926,96411.0,96400.0,0.051931]
[1735305036532,0.004,96412.0,96411.0,0.051926]
[1735305036727,0.004,96412.0,96411.0,1.551926]
[1735305037631,0.004,96412.0,96411.0,1.5]
[1735305037836,0.002,96412.0,96411.0,1.5]
[1735305038027,0.002,96412.0,96400.0,0.001]
[1735305038338,0.051927,96409.0,96401.0,0.051931]
[1735305039227,0.10289027,96411.0,96401.0,0.051931]
[1735305039431,0.051929,96405.0,96401.0,0.051931]
[1735305039933,0.05193,96402.0,96400.0,1.501]
[1735305040126,0.05193,96402.0,96400.0,0.001]
[1735305040633,0.0969,96410.0,96390.0,1.5]
[1735305040828,0.0969,96410.0,96401.0,0.001]
[1735305041535,0.051933,96398.0,96390.0,1.5]
[1735305042121,0.10289027,96400.0,96390.0,1.5]
[1735305042325,0.051934,96395.0,96389.0,0.051937]
[1735305043039,0.051933,96399.0,96382.0,1.5325]
[1735305043334,0.10289027,96400.0,96382.0,1.5325]
[1735305043335,0.051937,96390.0,96382.0,1.5325]
[1735305043528,0.051937,96390.0,96382.0,1.584441]
[1735305043834,0.051937,96390.0,96382.0,1.5325]
[1735305044030,0.20179027,96410.0,96382.0,1.5325]
[1735305044229,0.051932,96399.0,96390.0,0.051937]
[1735305044428,0.001,96390.0,96389.0,0.051937]
[1735305045338,0.001,96390.0,96389.0,1.551937]
[1735305045536,0.12249043,96407.0,96394.0,0.051934]
[1735305045537,0.051931,96401.0,96394.0,0.051934]
[1735305046129,0.051931,96401.0,96389.0,1.502]
[1735305046330,0.051931,96401.0,96395.0,0.051934]
[1735305047232,0.052931,96401.0,96396.0,3.545]
[1735305047533,0.053931,96401.0,96396.0,3.545]
[1735305047842,0.002,96401.0,96397.0,0.051933]
[1735305048035,0.002,96401.0,96399.0,0.051932]
[1735305048438,0.12249043,96411.0,96397.0,0.0311]
[1735305048743,0.15382755,96417.0,96410.0,0.051926]
[1735305049936,0.12321887,96418.0,96410.0,0.051926]
[1735305050533,0.12321887,96418.0,96401.0,0.0303]
[1735305050844,0.12321887,96418.0,96412.0,0.051925]
[1735305051036,0.003,96417.0,96412.0,0.051925]
[1735305051541,0.13321887,96417.0,96412.0,0.051925]
[1735305051733,0.13021887,96417.0,96412.0,0.051925]
[1735305052340,0.13021887,96417.0,96411.0,1.5]
[1735305052639,0.13421887,96417.0,96413.0,0.051924]
[1735305052834,0.011,96417.0,96416.0,0.051923]
[1735305053441,0.004,96417.0,96416.0,0.051923]
[1735305054134,0.009,96417.0,96416.0,0.051923]
[1735305054446,0.013,96417.0,96416.0,0.051923]
[1735305054637,0.013,96417.0,96416.0,1.551923]
[1735305054939,0.009,96417.0,96416.0,1.551923]
[1735305055135,0.014,96417.0,96416.0,1.551923]
[1735305056239,0.12321887,96432.0,96423.0,0.051919]
[1735305056540,0.12321887,96432.0,96427.0,0.051917]
[1735305057039,0.17513387,96432.0,96427.0,0.051917]
[1735305057430,0.18013387,96432.0,96427.0,0.051917]
[1735305057632,0.065915,96432.0,96427.0,0.051917]
[1735305058136,0.066915,96432.0,96427.0,0.052917]
[1735305058536,0.051916,96428.0,96427.0,0.001]
[1735305059228,0.015,96432.0,96427.0,0.001]
[1735305059740,0.015,96432.0,96428.0,0.051916]
[1735305060535,0.12321887,96432.0,96428.0,0.051916]
[1735305061342,0.13821887,96432.0,96428.0,0.053916]
[1735305061645,0.13821887,96432.0,96430.0,0.051915]
[1735305061841,0.015,96432.0,96430.0,0.051915]
[1735305062842,0.015,96432.0,96431.0,1.5]
[1735305063341,0.016,96432.0,96431.0,1.5]
[1735305063942,0.007,96432.0,96431.0,1.5]
[1735305064136,0.01,96432.0,96430.0,0.001]
[1735305064535,0.002,96432.0,96421.0,0.0318]
[1735305064735,0.002,96432.0,96425.0,0.051918]
[1735305065037,0.001,96432.0,96425.0,0.051918]
[1735305065236,0.004,96432.0,96426.0,0.051917]
[1735305066242,0.004,96432.0,96431.0,0.051915]
[1735305066445,0.12321887,96439.0,96431.0,0.051915]
[1735305066644,0.15382755,96446.0,96445.0,0.051907]
[1735305066847,0.00483855,96446.0,96445.0,1.551907]
[1735305067740,0.007,96446.0,96445.0,1.552907]
[1735305068044,0.00155555,96462.0,96452.0,0.051904]
[1735305068547,0.00155555,96462.0,96461.0,0.051899]
[1735305068746,0.00044,96472.0,96471.0,0.051893]
[1735305069141,0.00044,96472.0,96471.0,1.551893]
[1735305070242,0.00444,96472.0,96471.0,1.734493]
[1735305070442,0.00444,96472.0,96471.0,2.034493]
[1735305070645,1e-06,96472.0,96471.0,2.034493]
[1735305071150,0.0305,96498.0,96472.0,0.1826]
[1735305071347,0.00155503,96510.0,96488.0,0.10289027]
[1735305071550,0.00155503,96510.0,96499.0,0.051878]
[1735305072141,0.00155503,96510.0,96499.0,1.551878]
[1735305073553,0.101,96500.0,96499.0,1.551878]
[1735305073953,0.101,96500.0,96488.0,0.002]
[1735305074155,0.101,96500.0,96481.0,0.1826]
[1735305074547,0.101,96500.0,96490.0,0.10289027]
[1735305074844,0.101,96500.0,96492.0,0.051882]
[1735305075053,0.101,96500.0,96480.0,0.10289027]
[1735305075258,0.051879,96498.0,96483.0,0.051886]
[1735305075449,0.051879,96498.0,96484.0,0.051886]
[1735305075754,0.051879,96498.0,96488.0,0.001]
[1735305076558,0.1,96500.0,96481.0,0.005]
[1735305076751,0.1,96500.0,96498.0,0.051879]
[1735305077059,0.103,96500.0,96498.0,0.051879]
[1735305077960,0.1,96500.0,96498.0,0.051879]
[1735305078951,0.1,96500.0,96498.0,0.351879]
[1735305079152,0.102,96500.0,96498.0,0.351879]
[1735305079552,0.00155503,96510.0,96509.0,0.051873]
[1735305080061,0.00155503,96510.0,96509.0,1.551873]
[1735305080262,0.0305,96518.0,96517.0,0.051869]
[1735305080952,0.0305,96518.0,96517.0,1.551869]
[1735305082253,0.0345,96518.0,96517.0,1.551869]
[1735305083465,0.0385,96518.0,96517.0,1.552869]
[1735305083650,0.0385,96518.0,96517.0,0.052869]
[1735305083857,0.0385,96518.0,96517.0,0.001]
[1735305084052,0.0385,96518.0,96490.0,0.28549027]
[1735305084258,0.051871,96513.0,96500.0,0.15476727]
[1735305084863,0.051871,96513.0,96501.0,0.051877]
[1735305085164,0.051871,96513.0,96503.0,0.051876]
[1735305085766,0.051871,96513.0,96505.0,0.051875]
[1735305086962,0.051872,96512.0,96505.0,0.051875]
[1735305087267,0.082272,96512.0,96505.0,0.051875]
[1735305088563,0.087272,96512.0,96505.0,0.051875]
[1735305089767,0.0354,96512.0,96506.0,1.5]
[1735305089975,0.0354,96512.0,96511.0,0.051872]
[1735305090171,0.005,96512.0,96511.0,0.051872]
[1735305091760,0.006,96512.0,96511.0,0.052872]
[1735305092571,0.006,96512.0,96511.0,1.552872]
[1735305092971,0.005,96512.0,96511.0,1.552872]
[1735305093270,0.008,96512.0,96511.0,1.552872]
[1735305093663,0.008,96512.0,96511.0,1.56326366]
[1735305094874,0.008,96512.0,96511.0,1.552872]
[1735305095061,0.008,96512.0,96511.0,0.001]
[1735305095268,0.051879,96499.0,96493.0,3.545]
[1735305095566,0.0331,96498.0,96493.0,3.545]
[1735305095772,0.0331,96498.0,96494.0,1.551881]
[1735305096467,0.084979,96498.0,96494.0,1.551881]
[1735305096667,0.05188,96496.0,96494.0,1.5]
[1735305097066,0.05188,96496.0,96493.0,3.545]
[1735305097067,0.051881,96494.0,96493.0,3.545]
[1735305097374,0.051881,96494.0,96493.0,3.546]
[1735305098173,0.051881,96494.0,96493.0,3.545]
[1735305098768,0.054881,96494.0,96493.0,3.545]
[1735305098964,0.055881,96494.0,96493.0,3.545]
[1735305102875,0.004,96494.0,96493.0,3.545]
[1735305103372,0.004,96494.0,96493.0,5.045]
[1735305104578,0.003,96494.0,96493.0,5.046]
[1735305105273,0.003,96494.0,96493.0,5.045]
[1735305105579,0.004,96494.0,96493.0,5.045]
[1735305107879,0.004,96494.0,96493.0,3.545]
[1735305108275,0.051882,96493.0,96478.0,1.5]
[1735305108475,0.004,96494.0,96478.0,1.5]
[1735305108476,0.051887,96483.0,96478.0,1.5]
[1735305108677,0.0313,96482.0,96478.0,1.5]
[1735305108878,0.051888,96481.0,96478.0,1.5]
[1735305109077,0.051889,96479.0,96478.0,1.5]
[1735305110086,0.051894,96471.0,96458.0,0.24851113]
[1735305110279,0.0309,96470.0,96461.0,0.051899]
[1735305110675,0.0309,96470.0,96462.0,1.5]
[1735305111773,0.051894,96469.0,96462.0,1.5]
[1735305112079,0.051894,96469.0,96462.0,1.509]
[1735305114282,0.051894,96469.0,96462.0,1.505]
[1735305114478,0.052894,96469.0,96462.0,1.514]
[1735305114984,0.001,96469.0,96468.0,0.051895]
[1735305115671,0.001,96469.0,96468.0,1.551895]
[1735305117184,0.0314,96473.0,96468.0,1.551895]
[1735305117385,0.001,96469.0,96468.0,1.563895]
[1735305118686,0.001,96473.0,96472.0,0.051893]
[1735305120784,0.15386911,96503.0,96489.0,0.051883]
[1735305120981,0.15386911,96503.0,96480.0,0.15477827]
[1735305121187,0.051882,96492.0,96490.0,1.5]
[1735305122894,0.10799055,96509.0,96490.0,1.5]
[1735305122895,0.15386911,96506.0,96490.0,1.5]
[1735305123076,0.051875,96505.0,96490.0,1.5]
[1735305123282,0.051879,96499.0,96490.0,1.5]
[1735305123690,0.20574411,96506.0,96490.0,1.5]
[1735305123889,0.15386911,96506.0,96502.0,0.051876]
[1735305124082,0.15386911,96503.0,96502.0,0.051876]
[1735305124586,0.051877,96501.0,96493.0,3.545]
[1735305125176,0.051878,96500.0,96493.0,3.545]
[1735305125789,0.051881,96495.0,96493.0,3.545]
[1735305126185,0.351881,96495.0,96493.0,3.545]
[1735305126493,0.351881,96495.0,96493.0,3.546]
[1735305127386,0.05046268,96494.0,96493.0,3.546]
[1735305128581,0.05046268,96494.0,96493.0,3.545]
[1735305128788,0.05146268,96494.0,96493.0,3.545]
[1735305129384,0.05446268,96494.0,96493.0,3.545]
[1735305132890,0.35446268,96494.0,96493.0,1.631]
[1735305133698,0.05446268,96494.0,96493.0,1.631]
[1735305138586,0.27059705,96494.0,96493.0,1.631]
[1735305140998,0.23931038,96494.0,96493.0,1.631]
[1735305142202,0.05446268,96494.0,96493.0,1.631]
[1735305143405,0.004,96494.0,96493.0,1.631]
[1735305144801,0.05446268,96494.0,96493.0,1.631]
[1735305145194,0.05446268,96494.0,96493.0,1.522325]
[1735305145387,0.35446268,96494.0,96493.0,0.90108993]
[1735305145593,0.35446268,96494.0,96493.0,0.59064493]
[1735305145896,0.35446268,96494.0,96493.0,0.25192194]
[1735305146092,0.35446268,96494.0,96493.0,0.20202194]
[1735305146401,0.35446268,96494.0,96493.0,0.15212194]
[1735305147203,0.35446268,96494.0,96493.0,0.11062832]
[1735305147392,0.35446268,96494.0,96493.0,0.10544456]
[1735305147595,0.35446268,96494.0,96456.0,0.00155512]
[1735305147899,0.051901,96458.0,96451.0,0.031]
[1735305148995,0.051901,96458.0,96456.0,0.004]
[1735305149405,0.17515639,96458.0,96456.0,0.002]
[1735305150102,0.17515639,96458.0,96451.0,0.037]
[1735305150103,0.051904,96452.0,96451.0,0.037]
[1735305150300,0.051904,96452.0,96451.0,0.006]
[1735305151000,0.0329,96457.0,96456.0,0.005]
[1735305151596,0.051911,96439.0,96438.0,0.18639717]
[1735305151906,0.051911,96439.0,96438.0,1.68639717]
[1735305152098,0.051911,96439.0,96438.0,1.5]
[1735305152498,0.051911,96439.0,96437.0,0.0329]
[1735305153406,0.052911,96439.0,96437.0,0.0329]
[1735305153904,0.051911,96439.0,96437.0,0.0329]
[1735305154107,0.052911,96439.0,96437.0,0.0329]
[1735305154707,0.056911,96439.0,96437.0,0.0329]
[1735305154901,0.056911,96439.0,96438.0,1.5]
[1735305155906,0.056911,96439.0,96437.0,0.0329]
[1735305156603,0.005,96439.0,96432.0,1.5]
[1735305156807,0.051924,96414.0,96411.0,0.0309]
[1735305157106,0.305,96439.0,96411.0,0.0309]
[1735305157107,0.051925,96413.0,96411.0,0.0309]
[1735305157597,0.0317,96412.0,96411.0,0.0309]
[1735305157997,0.051927,96408.0,96407.0,0.18639717]
[1735305158400,0.051929,96405.0,96404.0,0.0331]
[1735305160604,0.051931,96401.0,96382.0,0.0313]
[1735305160813,0.051931,96401.0,96383.0,0.0314]
[1735305161699,0.052931,96401.0,96383.0,0.0314]
[1735305162314,0.052931,96401.0,96400.0,0.101]
[1735305164710,0.052931,96401.0,96400.0,1.601]
[1735305166605,0.052931,96401.0,96400.0,0.101]
[1735305167411,0.051941,96382.0,96381.0,0.00155633]
[1735305167717,0.051951,96365.0,96353.0,0.0633]
[1735305167910,0.051944,96378.0,96360.0,0.051953]
[1735305168110,0.051944,96378.0,96363.0,0.051951]
[1735305168315,0.10289027,96373.0,96358.0,1.5]
[1735305168913,0.001,96365.0,96360.0,0.051953]
[1735305169314,0.052951,96365.0,96363.0,0.007]
[1735305169615,0.001,96365.0,96363.0,0.007]
[1735305169820,0.051951,96364.0,96363.0,0.007]
[1735305170617,0.051951,96364.0,96360.0,0.008]
[1735305170815,0.051953,96361.0,96360.0,0.008]
[1735305172316,0.051953,96361.0,96360.0,0.017]
[1735305172317,0.052953,96361.0,96360.0,0.017]
[1735305172614,0.052953,96361.0,96360.0,0.009]
[1735305173306,0.052953,96361.0,96338.0,0.051965]
[1735305173307,0.051953,96360.0,96300.0,0.1]
[1735305173512,0.051971,96328.0,96316.0,0.0329]
[1735305175014,0.10289027,96336.0,96319.0,1.5]
[1735305175015,0.051973,96324.0,96319.0,1.5]
[1735305175718,0.051973,96323.0,96319.0,1.5]
[1735305176622,0.051973,96323.0,96319.0,1.503]
[1735305177326,0.051973,96323.0,96319.0,1.505]
[1735305177823,0.052973,96323.0,96319.0,1.505]
[1735305178323,0.051974,96321.0,96319.0,1.505]
[1735305179317,0.0324,96335.0,96320.0,0.10289027]
[1735305179519,0.03365774,96348.0,96320.0,0.15486427]
[1735305179721,0.10289027,96340.0,96320.0,0.051974]
[1735305179914,0.051966,96336.0,96321.0,0.051974]
[1735305180411,0.051966,96336.0,96332.0,1.5]
[1735305180617,0.0440768,96348.0,96332.0,1.5]
[1735305180815,0.051963,96343.0,96332.0,1.5]
[1735305181016,0.00155774,96348.0,96332.0,1.8]
[1735305181224,0.00155774,96348.0,96338.0,0.10289027]
[1735305181431,0.10289027,96360.0,96345.0,0.051961]
[1735305182219,0.15484327,96360.0,96345.0,0.051961]
[1735305182419,0.10289027,96380.0,96350.0,0.10289027]
[1735305182623,0.01025404,96376.0,96350.0,0.10289027]
[1735305182824,0.05194,96385.0,96360.0,0.10289027]
[1735305183025,0.10289027,96380.0,96360.0,0.10289027]
[1735305183331,0.051941,96384.0,96368.0,0.051948]
[1735305183527,0.051931,96401.0,96381.0,0.051942]
[1735305183731,0.051928,96408.0,96388.0,0.051938]
[1735305183917,0.051928,96408.0,96380.0,0.10289027]
[1735305183918,0.051928,96408.0,96391.0,0.051936]
[1735305184227,0.15524853,96410.0,96383.0,0.051941]
[1735305184417,0.20717453,96410.0,96380.0,0.45524853]
[1735305184612,0.051926,96410.0,96383.0,0.05194]
[1735305184817,0.09224276,96416.0,96399.0,0.051932]
[1735305185037,0.09224276,96416.0,96400.0,0.051931]
[1735305185234,0.051931,96401.0,96371.0,0.0322]
[1735305185522,0.001,96402.0,96389.0,0.051937]
[1735305185723,0.001,96402.0,96401.0,0.051931]
[1735305185927,0.00155648,96421.0,96401.0,0.051931]
[1735305186133,0.051922,96418.0,96401.0,0.051931]
[1735305186522,0.00155648,96421.0,96401.0,0.051931]
[1735305187021,0.053923,96416.0,96401.0,0.051931]
[1735305187221,0.051925,96413.0,96392.0,0.051936]
[1735305187431,0.15524853,96411.0,96393.0,0.01413148]
[1735305187625,0.15524853,96411.0,96392.0,0.051936]
[1735305187826,0.003,96418.0,96392.0,0.051936]
[1735305188229,0.005,96416.0,96392.0,0.051936]
[1735305188421,0.051927,96409.0,96392.0,0.051936]
[1735305190033,0.051927,96409.0,96392.0,0.052936]
[1735305190729,0.052927,96409.0,96392.0,0.052936]
[1735305191716,0.051929,96404.0,96392.0,0.001]
[1735305191928,0.001,96409.0,96390.0,0.18674853]
[1735305192134,0.001,96409.0,96393.0,0.051935]
[1735305192824,0.001,96409.0,96399.0,0.15524853]
[1735305193722,0.051921,96420.0,96399.0,0.15524853]
[1735305193924,0.00155648,96421.0,96410.0,0.20717453]
[1735305194234,0.01056249,96437.0,96420.0,0.051921]
[1735305194534,0.05191,96441.0,96424.0,0.051918]
[1735305194836,0.09224276,96443.0,96425.0,1.5]
[1735305195031,0.15524853,96450.0,96427.0,0.051917]
[1735305195221,0.15524853,96450.0,96425.0,1.5]
[1735305195222,0.05191,96441.0,96425.0,1.5]
[1735305195428,0.15524853,96450.0,96425.0,1.5]
[1735305195429,0.16583591,96450.0,96425.0,1.5]
[1735305195929,0.051922,96419.0,96403.0,0.05193]
[1735305196131,0.051923,96417.0,96397.0,0.051933]
[1735305196334,0.051923,96417.0,96401.0,0.18639717]
[1735305197028,0.15524853,96430.0,96401.0,0.18639717]
[1735305197229,0.051925,96413.0,96401.0,0.18639717]
[1735305197434,0.051925,96413.0,96399.0,0.051932]
[1735305197739,0.051925,96413.0,96401.0,0.002]
[1735305198534,0.051925,96413.0,96401.0,0.004]
[1735305199247,0.0332,96429.0,96401.0,0.003]
[1735305199540,0.05193,96403.0,96401.0,0.003]
[1735305199734,0.051937,96391.0,96377.0,0.051944]
[1735305199936,0.051937,96391.0,96376.0,0.53543717]
[1735305200248,0.051937,96391.0,96378.0,0.051943]
[1735305201339,0.055937,96391.0,96378.0,0.051943]
[1735305201940,0.056937,96391.0,96378.0,0.051943]
[1735305202638,0.055937,96391.0,96378.0,0.051943]
[1735305202832,0.056937,96391.0,96378.0,0.051943]
[1735305203031,0.005,96391.0,96380.0,0.15524853]
[1735305203233,0.005,96391.0,96385.0,0.051939]
[1735305203635,0.005,96391.0,96377.0,1.5]
[1735305203834,0.005,96391.0,96353.0,0.051957]
[1735305203835,0.051939,96387.0,96367.0,0.051949]
[1735305204040,0.051939,96387.0,96386.0,0.00255624]
[1735305204637,0.051939,96387.0,96386.0,0.00155624]
[1735305204842,0.005,96391.0,96386.0,0.00155624]
[1735305205437,0.005,96391.0,96388.0,0.051938]
[1735305205639,0.004,96391.0,96390.0,1.5]
[1735305206746,0.15524853,96410.0,96390.0,1.5]
[1735305206937,0.051932,96399.0,96390.0,1.5]
[1735305207439,0.003,96391.0,96390.0,1.5]
[1735305207638,0.003,96391.0,96386.0,0.00155624]
[1735305207839,0.051932,96399.0,96386.0,0.00155624]
[1735305208339,0.051932,96399.0,96387.0,1.5]
[1735305209150,0.051933,96398.0,96387.0,1.5]
[1735305209937,0.003,96391.0,96387.0,1.5]
[1735305210534,0.003,96391.0,96387.0,1.551938]
[1735305210938,0.053933,96398.0,96387.0,1.551938]
[1735305211448,0.051933,96398.0,96387.0,1.551938]
[1735305211648,0.002,96391.0,96387.0,1.551938]
[1735305212046,0.002,96391.0,96389.0,0.051937]
[1735305212939,0.051933,96398.0,96389.0,0.051937]
[1735305213148,0.053933,96398.0,96389.0,0.051937]
[1735305213454,0.002,96398.0,96395.0,0.051934]
[1735305213744,0.09224276,96400.0,96396.0,1.5]
[1735305214253,0.09224276,96400.0,96398.0,0.051932]
[1735305214648,0.12299035,96401.0,96398.0,0.051932]
[1735305214851,0.002,96400.0,96398.0,0.051932]
[1735305215952,0.002,96400.0,96396.0,1.5]
[1735305216145,0.002,96400.0,96391.0,0.18639717]
[1735305216352,0.002,96400.0,96392.0,0.01426647]
[1735305216552,0.002,96400.0,96391.0,0.18639717]
[1735305216754,0.002,96400.0,96392.0,1.551935]
[1735305216955,0.002,96400.0,96395.0,0.051934]
[1735305217260,0.001,96400.0,96395.0,0.051934]
[1735305217756,0.051931,96401.0,96395.0,0.051934]
[1735305219460,0.001,96400.0,96395.0,0.051934]
[1735305219949,0.052931,96401.0,96395.0,0.051934]
[1735305220350,0.051931,96401.0,96395.0,0.051934]
[1735305220655,0.001,96400.0,96395.0,0.051934]
[1735305221060,0.052931,96401.0,96395.0,0.051934]
[1735305222160,0.052931,96401.0,96395.0,0.052934]
[1735305222556,0.051931,96401.0,96395.0,0.052934]
[1735305222768,0.052931,96401.0,96398.0,0.051932]
[1735305223955,0.053931,96401.0,96398.0,0.051932]
[1735305224959,0.002,96401.0,96398.0,0.051932]
[1735305226253,0.09242421,96410.0,96398.0,0.051932]
[1735305226254,0.09242421,96405.0,96398.0,0.051932]
[1735305226459,0.002,96401.0,96398.0,0.051932]
[1735305226655,0.002,96401.0,96396.0,0.18639717]
[1735305226962,0.002,96401.0,96399.0,0.051932]
[1735305227160,0.002,96401.0,96400.0,0.0318]
[1735305227361,0.09242421,96405.0,96400.0,0.0318]
[1735305227660,0.002,96401.0,96400.0,0.0318]
[1735305228761,0.26760894,96437.0,96415.0,0.051923]
[1735305228956,0.26896894,96437.0,96415.0,0.06363644]
[1735305229163,0.051913,96435.0,96415.0,1.51171344]
[1735305229464,0.051914,96434.0,96421.0,0.05192]
[1735305229757,0.03,96436.0,96421.0,0.06363016]
[1735305229957,0.03,96436.0,96421.0,0.07366717]
[1735305230360,0.19348553,96422.0,96421.0,0.06356529]
[1735305230563,0.19348553,96422.0,96421.0,0.07788736]
[1735305230956,0.009,96422.0,96421.0,0.06355321]
[1735305231265,0.009,96422.0,96421.0,0.06624207]
[1735305231659,0.013,96422.0,96421.0,0.06624207]
[1735305231863,0.009,96422.0,96421.0,0.07887008]
[1735305232066,0.03,96436.0,96435.0,0.051913]
[1735305235362,0.032,96436.0,96435.0,0.051913]
[1735305235865,0.032,96436.0,96418.0,0.1862942]
[1735305236169,0.051921,96419.0,96418.0,0.1862942]
[1735305236470,0.051921,96419.0,96418.0,0.1363942]
[1735305236965,0.051918,96425.0,96402.0,0.05193]
[1735305237165,0.051924,96414.0,96402.0,0.05193]
[1735305238367,0.051925,96413.0,96402.0,0.05193]
[1735305238760,0.051925,96413.0,96402.0,0.001]
[1735305238964,0.051925,96413.0,96403.0,0.051929]
[1735305241661,0.052925,96413.0,96404.0,0.051929]
[1735305241860,0.001,96413.0,96400.0,0.10349883]
[1735305242062,0.001,96413.0,96412.0,1.5]
[1735305242665,0.20596434,96423.0,96412.0,1.5]
[1735305242962,0.002,96413.0,96412.0,1.5]
[1735305243363,0.001,96413.0,96412.0,1.5]
[1735305245468,0.051924,96415.0,96412.0,1.5]
[1735305246061,0.003,96413.0,96412.0,1.5]
[1735305246860,0.003,96413.0,96399.0,0.01012686]
[1735305247072,0.051929,96406.0,96395.0,0.051934]
[1735305247375,0.051929,96406.0,96396.0,1.5]
[1735305247769,0.051929,96405.0,96396.0,1.5]
[1735305248161,0.0308,96409.0,96396.0,1.5]
[1735305248364,0.051933,96398.0,96396.0,1.5]
[1735305248568,0.0308,96409.0,96395.0,0.001]
[1735305248875,0.051934,96396.0,96395.0,0.001]
[1735305249073,0.051934,96396.0,96386.0,0.051939]
[1735305249274,0.051934,96396.0,96385.0,0.01058048]